[Event "Titled Tuesday Blitz April 11 Late 2023"]
[White "Urbina Perez, Juan Antonio"]
[Black "Oro, Faustino"]
[WhiteFideId "2217368"]
[BlackFideId "20000197"]
[WhiteElo "2197"]
[BlackElo "1984"]
[Result "0-1"]
[Round "04"]
[TimeControl "180+2"]
[Date "2023.04.11"]
[WhiteClock "0:00:14"]
[BlackClock "0:00:11"]

1. c4 {[%clk 0:02:46]}  e5 {[%clk 0:02:57]} 2. d3 {[%clk 0:02:45]}  Nf6 {[%clk 0:02:54]} 3. Nf3 {[%clk 0:02:45]}  Nc6 {[%clk 0:02:54]} 4. a3 {[%clk 0:02:46]}  a5 {[%clk 0:02:53]} 5. g3 {[%clk 0:02:45]}  g6 {[%clk 0:02:33]} 6. Bg2 {[%clk 0:02:44]}  Bg7 {[%clk 0:02:34]} 7. O-O {[%clk 0:02:45]}  d6 {[%clk 0:02:34]} 8. Nc3 {[%clk 0:02:42]}  O-O {[%clk 0:02:34]} 9. Bg5 {[%clk 0:02:41]}  h6 {[%clk 0:02:32]} 10. Bd2 {[%clk 0:02:42]}  Be6 {[%clk 0:02:27]} 11. Rb1 {[%clk 0:02:42]}  d5 {[%clk 0:02:19]} 12. cxd5 {[%clk 0:02:40]}  Nxd5 {[%clk 0:02:19]} 13. Qc1 {[%clk 0:02:28]}  Kh7 {[%clk 0:02:16]} 14. Nxd5 {[%clk 0:02:23]}  Bxd5 {[%clk 0:02:16]} 15. Bc3 {[%clk 0:02:23]}  Nd4 {[%clk 0:02:00]} 16. Bxd4 {[%clk 0:01:55]}  exd4 {[%clk 0:01:59]} 17. Qc2 {[%clk 0:01:39]}  Re8 {[%clk 0:01:51]} 18. Rfc1 {[%clk 0:01:37]}  c6 {[%clk 0:01:50]} 19. b4 {[%clk 0:01:34]}  axb4 {[%clk 0:01:50]} 20. axb4 {[%clk 0:01:35]}  Qd6 {[%clk 0:01:26]} 21. Rb2 {[%clk 0:01:29]}  Ra3 {[%clk 0:01:23]} 22. Qc5 {[%clk 0:01:24]}  Qxc5 {[%clk 0:01:15]} 23. bxc5 {[%clk 0:01:25]}  Rc3 {[%clk 0:01:14]} 24. Rcc2 {[%clk 0:01:09]}  Ra8 {[%clk 0:01:05]} 25. Nd2 {[%clk 0:00:41]}  Ra1+ {[%clk 0:01:01]} 26. Bf1 {[%clk 0:00:41]}  Bf8 {[%clk 0:00:51]} 27. Ne4 {[%clk 0:00:30]}  Rxc2 {[%clk 0:00:31]} 28. Rxc2 {[%clk 0:00:29]}  Rb1 {[%clk 0:00:25]} 29. Nd6 {[%clk 0:00:27]}  h5 {[%clk 0:00:18]} 30. f3 {[%clk 0:00:25]}  Bh6 {[%clk 0:00:16]} 31. Kg2 {[%clk 0:00:20]}  Kg7 {[%clk 0:00:13]} 32. Ne4 {[%clk 0:00:20]}  Kf8 {[%clk 0:00:11]} 33. h4 {[%clk 0:00:18]}  Bb3 {[%clk 0:00:12]} 34. Ra2 {[%clk 0:00:14]}  Bxa2 {[%clk 0:00:12]} 35. Nd2 {[%clk 0:00:14]}  Bxd2 {[%clk 0:00:11]} 0-1


[Site "https://www.chess.com"]

[Event "Titled Tuesday Blitz April 11 Late 2023"]
[White "Bilych, Olexiy"]
[Black "Anand, Nadar"]
[WhiteFideId "14156504"]
[BlackFideId "25009141"]
[WhiteElo "2320"]
[BlackElo "2247"]
[Result "0-1"]
[Round "04"]
[TimeControl "180+2"]
[Date "2023.04.11"]
[WhiteClock "0:00:45"]
[BlackClock "0:00:04"]

1. d4 {[%clk 0:03:00]}  Nf6 {[%clk 0:03:00]} 2. c4 {[%clk 0:03:01]}  e6 {[%clk 0:02:58]} 3. Nf3 {[%clk 0:03:01]}  d5 {[%clk 0:02:57]} 4. Nc3 {[%clk 0:03:02]}  Bb4 {[%clk 0:02:56]} 5. cxd5 {[%clk 0:03:01]}  exd5 {[%clk 0:02:56]} 6. Qa4+ {[%clk 0:03:02]}  Nc6 {[%clk 0:02:54]} 7. Bg5 {[%clk 0:03:02]}  h6 {[%clk 0:02:54]} 8. Bxf6 {[%clk 0:03:03]}  Qxf6 {[%clk 0:02:55]} 9. e3 {[%clk 0:03:03]}  O-O {[%clk 0:02:54]} 10. Rc1 {[%clk 0:03:03]}  Be6 {[%clk 0:02:51]} 11. a3 {[%clk 0:03:03]}  Bxc3+ {[%clk 0:02:37]} 12. Rxc3 {[%clk 0:03:04]}  a6 {[%clk 0:02:32]} 13. Be2 {[%clk 0:03:01]}  Rfc8 {[%clk 0:02:12]} 14. Qc2 {[%clk 0:02:57]}  Bf5 {[%clk 0:02:09]} 15. Qc1 {[%clk 0:02:56]}  Qd6 {[%clk 0:02:07]} 16. O-O {[%clk 0:02:43]}  Ne7 {[%clk 0:02:06]} 17. b4 {[%clk 0:02:42]}  c6 {[%clk 0:01:52]} 18. Qb2 {[%clk 0:02:30]}  b5 {[%clk 0:01:28]} 19. a4 {[%clk 0:02:22]}  Bg4 {[%clk 0:01:19]} 20. a5 {[%clk 0:02:18]}  Bxf3 {[%clk 0:01:15]} 21. Bxf3 {[%clk 0:02:19]}  Nf5 {[%clk 0:01:06]} 22. Rfc1 {[%clk 0:02:17]}  Ra7 {[%clk 0:00:48]} 23. Qc2 {[%clk 0:02:15]}  Ne7 {[%clk 0:00:48]} 24. Rc5 {[%clk 0:02:14]}  Rac7 {[%clk 0:00:47]} 25. Qd3 {[%clk 0:02:03]}  g6 {[%clk 0:00:45]} 26. g3 {[%clk 0:02:01]}  Qf6 {[%clk 0:00:44]} 27. Kg2 {[%clk 0:01:59]}  Qd6 {[%clk 0:00:35]} 28. R1c3 {[%clk 0:01:51]}  h5 {[%clk 0:00:35]} 29. h4 {[%clk 0:01:47]}  Nf5 {[%clk 0:00:32]} 30. Qc2 {[%clk 0:01:44]}  Ne7 {[%clk 0:00:28]} 31. Kf1 {[%clk 0:01:30]}  Kf8 {[%clk 0:00:28]} 32. Ke1 {[%clk 0:01:30]}  Ke8 {[%clk 0:00:29]} 33. Kd1 {[%clk 0:01:31]}  Kd8 {[%clk 0:00:29]} 34. Kc1 {[%clk 0:01:31]}  Nf5 {[%clk 0:00:27]} 35. Kb2 {[%clk 0:01:31]}  Qd7 {[%clk 0:00:16]} 36. Qe2 {[%clk 0:01:00]}  Nd6 {[%clk 0:00:16]} 37. g4 {[%clk 0:01:00]}  Nc4+ {[%clk 0:00:10]} 38. Kb3 {[%clk 0:00:57]}  hxg4 {[%clk 0:00:08]} 39. Bxg4 {[%clk 0:00:58]}  f5 {[%clk 0:00:07]} 40. Bh3 {[%clk 0:00:54]}  Qe6 {[%clk 0:00:03]} 41. Qf3 {[%clk 0:00:49]}  Nd2+ {[%clk 0:00:03]} 42. Kc2 {[%clk 0:00:45]}  Nxf3 {[%clk 0:00:03]} 43. h5 {[%clk 0:00:45]}  Ng5 {[%clk 0:00:04]} 44. h6 {[%clk 0:00:45]}  Nxh3 {[%clk 0:00:03]} 45. h7 {[%clk 0:00:46]}  Kd7 {[%clk 0:00:04]} 46. Rxc6 {[%clk 0:00:45]}  Rxc6 {[%clk 0:00:04]} 0-1


[Site "https://www.chess.com"]

[Event "Titled Tuesday Blitz April 11 Late 2023"]
[White "Aggelis, Nikolaos"]
[Black "Yanchenko, Roman"]
[WhiteFideId "4213220"]
[BlackFideId "4137329"]
[WhiteElo "2189"]
[BlackElo "2491"]
[Result "1/2-1/2"]
[Round "04"]
[TimeControl "180+2"]
[Date "2023.04.11"]
[WhiteClock "0:00:04"]
[BlackClock "0:00:29"]

1. c4 {[%clk 0:02:46]}  e6 {[%clk 0:02:59]} 2. g3 {[%clk 0:02:46]}  d5 {[%clk 0:02:59]} 3. Bg2 {[%clk 0:02:46]}  Nf6 {[%clk 0:02:59]} 4. Nf3 {[%clk 0:02:46]}  Be7 {[%clk 0:02:59]} 5. O-O {[%clk 0:02:47]}  O-O {[%clk 0:02:59]} 6. d4 {[%clk 0:02:47]}  Nbd7 {[%clk 0:02:55]} 7. b3 {[%clk 0:02:28]}  b6 {[%clk 0:02:51]} 8. Bb2 {[%clk 0:02:28]}  Bb7 {[%clk 0:02:51]} 9. Nbd2 {[%clk 0:02:28]}  dxc4 {[%clk 0:02:49]} 10. Nxc4 {[%clk 0:02:27]}  c5 {[%clk 0:02:50]} 11. Nfe5 {[%clk 0:02:26]}  Bxg2 {[%clk 0:02:49]} 12. Kxg2 {[%clk 0:02:25]}  Nxe5 {[%clk 0:02:49]} 13. Nxe5 {[%clk 0:02:26]}  Qd5+ {[%clk 0:02:48]} 14. Kg1 {[%clk 0:02:27]}  Rfd8 {[%clk 0:02:43]} 15. dxc5 {[%clk 0:02:27]}  Qxc5 {[%clk 0:02:43]} 16. Nd3 {[%clk 0:02:27]}  Qh5 {[%clk 0:02:41]} 17. Bxf6 {[%clk 0:02:24]}  Bxf6 {[%clk 0:02:41]} 18. Rc1 {[%clk 0:02:25]}  g6 {[%clk 0:02:29]} 19. Rc4 {[%clk 0:02:19]}  Rd7 {[%clk 0:02:19]} 20. Qc2 {[%clk 0:02:18]}  Rad8 {[%clk 0:02:18]} 21. Rc1 {[%clk 0:02:19]}  Kg7 {[%clk 0:02:16]} 22. Rc8 {[%clk 0:02:13]}  Rxc8 {[%clk 0:02:04]} 23. Qxc8 {[%clk 0:02:12]}  Rd8 {[%clk 0:02:04]} 24. Nf4 {[%clk 0:02:11]}  Qa5 {[%clk 0:01:54]} 25. Qc7 {[%clk 0:01:58]}  Kg8 {[%clk 0:01:45]} 26. a4 {[%clk 0:01:48]}  Qd2 {[%clk 0:01:32]} 27. Qc2 {[%clk 0:01:40]}  Qb4 {[%clk 0:01:26]} 28. Rd1 {[%clk 0:01:38]}  Rxd1+ {[%clk 0:01:06]} 29. Qxd1 {[%clk 0:01:39]}  Bd4 {[%clk 0:00:58]} 30. e3 {[%clk 0:01:33]}  Bf6 {[%clk 0:00:58]} 31. h4 {[%clk 0:01:27]}  Qc3 {[%clk 0:00:53]} 32. Qd3 {[%clk 0:01:26]}  Qc1+ {[%clk 0:00:48]} 33. Kg2 {[%clk 0:01:26]}  Qc6+ {[%clk 0:00:48]} 34. Kg1 {[%clk 0:01:26]}  Kg7 {[%clk 0:00:46]} 35. Ne2 {[%clk 0:01:05]}  Be5 {[%clk 0:00:44]} 36. Nf4 {[%clk 0:00:58]}  h6 {[%clk 0:00:42]} 37. Ne2 {[%clk 0:00:52]}  g5 {[%clk 0:00:39]} 38. hxg5 {[%clk 0:00:48]}  hxg5 {[%clk 0:00:40]} 39. Qb5 {[%clk 0:00:38]}  Qe4 {[%clk 0:00:37]} 40. Qc4 {[%clk 0:00:33]}  Qf3 {[%clk 0:00:37]} 41. Nc1 {[%clk 0:00:28]}  Kg6 {[%clk 0:00:19]} 42. Nd3 {[%clk 0:00:25]}  Bxg3 {[%clk 0:00:18]} 43. fxg3 {[%clk 0:00:26]}  Qxg3+ {[%clk 0:00:18]} 44. Kf1 {[%clk 0:00:27]}  Qf3+ {[%clk 0:00:19]} 45. Nf2 {[%clk 0:00:26]}  Qxe3 {[%clk 0:00:19]} 46. Qd3+ {[%clk 0:00:22]}  Qxd3+ {[%clk 0:00:20]} 47. Nxd3 {[%clk 0:00:23]}  f5 {[%clk 0:00:20]} 48. Ne5+ {[%clk 0:00:23]}  Kf6 {[%clk 0:00:20]} 49. Nc6 {[%clk 0:00:23]}  a5 {[%clk 0:00:19]} 50. Na7 {[%clk 0:00:22]}  Ke5 {[%clk 0:00:20]} 51. Nc8 {[%clk 0:00:22]}  Kd4 {[%clk 0:00:19]} 52. Nxb6 {[%clk 0:00:23]}  Kc3 {[%clk 0:00:20]} 53. Nc4 {[%clk 0:00:19]}  Kb4 {[%clk 0:00:19]} 54. Ke2 {[%clk 0:00:18]}  g4 {[%clk 0:00:20]} 55. Ke3 {[%clk 0:00:18]}  g3 {[%clk 0:00:20]} 56. Kf3 {[%clk 0:00:18]}  f4 {[%clk 0:00:21]} 57. Nd2 {[%clk 0:00:14]}  e5 {[%clk 0:00:21]} 58. Kg2 {[%clk 0:00:09]}  Kc3 {[%clk 0:00:21]} 59. Nc4 {[%clk 0:00:08]}  Kb4 {[%clk 0:00:21]} 60. Nxe5 {[%clk 0:00:08]}  Kxb3 {[%clk 0:00:22]} 61. Kf3 {[%clk 0:00:04]}  Kxa4 {[%clk 0:00:22]} 62. Ng6 {[%clk 0:00:05]}  Kb3 {[%clk 0:00:21]} 63. Nxf4 {[%clk 0:00:06]}  a4 {[%clk 0:00:22]} 64. Nd3 {[%clk 0:00:06]}  a3 {[%clk 0:00:22]} 65. Kxg3 {[%clk 0:00:06]}  Kc3 {[%clk 0:00:21]} 66. Nc1 {[%clk 0:00:06]}  Kb2 {[%clk 0:00:22]} 67. Nd3+ {[%clk 0:00:06]}  Kc2 {[%clk 0:00:22]} 68. Nb4+ {[%clk 0:00:06]}  Kd2 {[%clk 0:00:22]} 69. Kf4 {[%clk 0:00:06]}  Kc3 {[%clk 0:00:23]} 70. Na2+ {[%clk 0:00:05]}  Kb3 {[%clk 0:00:23]} 71. Nc1+ {[%clk 0:00:05]}  Kc2 {[%clk 0:00:23]} 72. Na2 {[%clk 0:00:05]}  Kb2 {[%clk 0:00:24]} 73. Nb4 {[%clk 0:00:04]}  Kc3 {[%clk 0:00:25]} 74. Na2+ {[%clk 0:00:04]}  Kc4 {[%clk 0:00:26]} 75. Ke3 {[%clk 0:00:04]}  Kb3 {[%clk 0:00:27]} 76. Nc1+ {[%clk 0:00:04]}  Kc2 {[%clk 0:00:27]} 77. Na2 {[%clk 0:00:04]}  Kb2 {[%clk 0:00:28]} 78. Nb4 {[%clk 0:00:04]}  a2 {[%clk 0:00:29]} 79. Nxa2 {[%clk 0:00:04]} 1/2-1/2


[Site "https://www.chess.com"]

[Event "Titled Tuesday Blitz April 11 Late 2023"]
[White "Martinez Ramirez, Lennis"]
[Black "Novik, Maxim"]
[WhiteFideId "3509079"]
[BlackFideId "4102924"]
[WhiteElo "2410"]
[BlackElo "2287"]
[Result "0-1"]
[Round "04"]
[TimeControl "180+2"]
[Date "2023.04.11"]
[WhiteClock "0:01:18"]
[BlackClock "0:00:44"]

1. c4 {[%clk 0:03:00]}  c5 {[%clk 0:02:59]} 2. Nf3 {[%clk 0:02:58]}  g6 {[%clk 0:02:58]} 3. Nc3 {[%clk 0:02:59]}  Bg7 {[%clk 0:02:58]} 4. d4 {[%clk 0:02:59]}  cxd4 {[%clk 0:02:58]} 5. Nxd4 {[%clk 0:03:00]}  Nc6 {[%clk 0:02:59]} 6. Nc2 {[%clk 0:02:59]}  Bxc3+ {[%clk 0:02:58]} 7. bxc3 {[%clk 0:03:00]}  Qa5 {[%clk 0:02:59]} 8. Bd2 {[%clk 0:02:58]}  Nf6 {[%clk 0:02:58]} 9. g3 {[%clk 0:02:56]}  d6 {[%clk 0:02:58]} 10. Bg2 {[%clk 0:02:56]}  Be6 {[%clk 0:02:58]} 11. Ne3 {[%clk 0:02:56]}  O-O {[%clk 0:02:55]} 12. O-O {[%clk 0:02:56]}  Ne5 {[%clk 0:02:53]} 13. Qb3 {[%clk 0:02:45]}  Rab8 {[%clk 0:02:49]} 14. Nd5 {[%clk 0:02:39]}  Nxc4 {[%clk 0:02:21]} 15. Nxe7+ {[%clk 0:02:19]}  Kg7 {[%clk 0:02:19]} 16. Bg5 {[%clk 0:02:20]}  Qxg5 {[%clk 0:02:16]} 17. Rad1 {[%clk 0:02:13]}  Qc5 {[%clk 0:02:01]} 18. Qb4 {[%clk 0:01:57]}  Qxb4 {[%clk 0:01:55]} 19. cxb4 {[%clk 0:01:58]}  Rfe8 {[%clk 0:01:51]} 20. Nd5 {[%clk 0:01:58]}  Bxd5 {[%clk 0:01:49]} 21. Bxd5 {[%clk 0:01:59]}  Nxd5 {[%clk 0:01:49]} 22. Rxd5 {[%clk 0:02:00]}  Rxe2 {[%clk 0:01:49]} 23. b5 {[%clk 0:01:58]}  Rxa2 {[%clk 0:01:40]} 24. Rc1 {[%clk 0:01:58]}  Rc8 {[%clk 0:01:37]} 25. Rd4 {[%clk 0:01:58]}  Ra4 {[%clk 0:01:33]} 26. Re1 {[%clk 0:01:59]}  Rb4 {[%clk 0:01:29]} 27. Re7 {[%clk 0:01:58]}  Rc5 {[%clk 0:01:27]} 28. Rxb7 {[%clk 0:01:56]}  Rb1+ {[%clk 0:01:01]} 29. Kg2 {[%clk 0:01:55]}  Ra1 {[%clk 0:00:49]} 30. Rf4 {[%clk 0:01:53]}  Ne5 {[%clk 0:00:49]} 31. Rd4 {[%clk 0:01:52]}  Ra2 {[%clk 0:00:47]} 32. g4 {[%clk 0:01:39]}  g5 {[%clk 0:00:45]} 33. Rxd6 {[%clk 0:01:28]}  Rcc2 {[%clk 0:00:44]} 34. h4 {[%clk 0:01:17]}  Rxf2+ {[%clk 0:00:44]} 35. Kg3 {[%clk 0:01:18]}  Rf3# {[%clk 0:00:44]} 0-1


[Site "https://www.chess.com"]

[Event "Titled Tuesday Blitz April 11 Late 2023"]
[White "Sai Han Thiha"]
[Black "Pulpan, Jakub"]
[WhiteFideId "13012290"]
[BlackFideId "302759"]
[WhiteElo "1954"]
[BlackElo "2484"]
[Result "0-1"]
[Round "04"]
[TimeControl "180+2"]
[Date "2023.04.11"]
[WhiteClock "0:00:10"]
[BlackClock "0:01:13"]

1. d4 {[%clk 0:03:00]}  Nf6 {[%clk 0:02:59]} 2. c4 {[%clk 0:03:01]}  b6 {[%clk 0:02:58]} 3. Nf3 {[%clk 0:03:01]}  Bb7 {[%clk 0:02:55]} 4. g3 {[%clk 0:03:00]}  e6 {[%clk 0:02:53]} 5. Bg2 {[%clk 0:03:00]}  Be7 {[%clk 0:02:52]} 6. O-O {[%clk 0:03:00]}  O-O {[%clk 0:02:52]} 7. Nc3 {[%clk 0:03:00]}  Ne4 {[%clk 0:02:52]} 8. Bd2 {[%clk 0:03:01]}  Nxc3 {[%clk 0:02:51]} 9. Bxc3 {[%clk 0:03:01]}  Be4 {[%clk 0:02:49]} 10. Qd2 {[%clk 0:02:24]}  c6 {[%clk 0:02:47]} 11. Rac1 {[%clk 0:01:54]}  a5 {[%clk 0:02:42]} 12. Ne5 {[%clk 0:01:42]}  Bxg2 {[%clk 0:02:41]} 13. Kxg2 {[%clk 0:01:43]}  d6 {[%clk 0:02:36]} 14. Nf3 {[%clk 0:01:43]}  b5 {[%clk 0:02:28]} 15. cxb5 {[%clk 0:01:40]}  cxb5 {[%clk 0:02:28]} 16. b3 {[%clk 0:01:38]}  Nd7 {[%clk 0:02:19]} 17. Bb2 {[%clk 0:01:29]}  a4 {[%clk 0:02:15]} 18. e4 {[%clk 0:01:16]}  Nf6 {[%clk 0:02:13]} 19. Qd3 {[%clk 0:01:15]}  axb3 {[%clk 0:02:08]} 20. axb3 {[%clk 0:01:14]}  d5 {[%clk 0:02:08]} 21. e5 {[%clk 0:01:04]}  Ne4 {[%clk 0:02:09]} 22. Ra1 {[%clk 0:01:04]}  Qb6 {[%clk 0:02:07]} 23. Nd2 {[%clk 0:01:02]}  Nxd2 {[%clk 0:02:05]} 24. Qxd2 {[%clk 0:01:03]}  h6 {[%clk 0:02:04]} 25. Rxa8 {[%clk 0:01:01]}  Rxa8 {[%clk 0:02:04]} 26. Ra1 {[%clk 0:01:02]}  Rxa1 {[%clk 0:02:03]} 27. Bxa1 {[%clk 0:01:03]}  Qa6 {[%clk 0:02:03]} 28. Qc1 {[%clk 0:00:59]}  b4 {[%clk 0:01:53]} 29. Qd1 {[%clk 0:00:39]}  Qa2 {[%clk 0:01:51]} 30. h4 {[%clk 0:00:39]}  h5 {[%clk 0:01:48]} 31. Kg1 {[%clk 0:00:34]}  g6 {[%clk 0:01:42]} 32. Kg2 {[%clk 0:00:35]}  Bf8 {[%clk 0:01:41]} 33. Kg1 {[%clk 0:00:25]}  Bh6 {[%clk 0:01:40]} 34. Kg2 {[%clk 0:00:22]}  Be3 {[%clk 0:01:23]} 35. Qe1 {[%clk 0:00:20]}  Bxf2 {[%clk 0:01:16]} 36. Qxf2 {[%clk 0:00:21]}  Qxa1 {[%clk 0:01:16]} 37. Qe3 {[%clk 0:00:22]}  Qc3 {[%clk 0:01:16]} 38. Kf3 {[%clk 0:00:22]}  Qxe3+ {[%clk 0:01:11]} 39. Kxe3 {[%clk 0:00:23]}  f6 {[%clk 0:01:12]} 40. exf6 {[%clk 0:00:19]}  Kf7 {[%clk 0:01:12]} 41. Kf3 {[%clk 0:00:20]}  Kxf6 {[%clk 0:01:12]} 42. Kf4 {[%clk 0:00:20]}  e5+ {[%clk 0:01:12]} 43. dxe5+ {[%clk 0:00:20]}  Ke6 {[%clk 0:01:12]} 44. g4 {[%clk 0:00:11]}  hxg4 {[%clk 0:01:12]} 45. Kxg4 {[%clk 0:00:12]}  Kxe5 {[%clk 0:01:09]} 46. Kg5 {[%clk 0:00:09]}  d4 {[%clk 0:01:10]} 47. Kxg6 {[%clk 0:00:10]}  d3 {[%clk 0:01:10]} 48. h5 {[%clk 0:00:11]}  d2 {[%clk 0:01:11]} 49. h6 {[%clk 0:00:12]}  d1=Q {[%clk 0:01:12]} 50. h7 {[%clk 0:00:13]}  Qg4+ {[%clk 0:01:13]} 51. Kh6 {[%clk 0:00:13]}  Kf5 {[%clk 0:01:13]} 52. h8=N {[%clk 0:00:10]}  Kf6 {[%clk 0:01:13]} 0-1


[Site "https://www.chess.com"]

[Event "Titled Tuesday Blitz April 11 Late 2023"]
[White "Rozman, Levy"]
[Black "Mazurkiewicz, Michal"]
[WhiteFideId "2039877"]
[BlackFideId "1124943"]
[WhiteElo "2376"]
[BlackElo "2054"]
[Result "1/2-1/2"]
[Round "04"]
[TimeControl "180+2"]
[Date "2023.04.11"]
[WhiteClock "0:00:21"]
[BlackClock "0:00:06"]

1. d4 {[%clk 0:02:59]}  Nf6 {[%clk 0:02:59]} 2. Bg5 {[%clk 0:03:00]}  e6 {[%clk 0:02:59]} 3. Nd2 {[%clk 0:03:00]}  h6 {[%clk 0:02:59]} 4. Bh4 {[%clk 0:03:00]}  d5 {[%clk 0:02:56]} 5. e3 {[%clk 0:03:00]}  Be7 {[%clk 0:02:55]} 6. Bd3 {[%clk 0:03:00]}  b6 {[%clk 0:02:55]} 7. c3 {[%clk 0:03:00]}  Bb7 {[%clk 0:02:55]} 8. Bxf6 {[%clk 0:02:59]}  Bxf6 {[%clk 0:02:55]} 9. f4 {[%clk 0:03:00]}  O-O {[%clk 0:02:53]} 10. Ngf3 {[%clk 0:03:01]}  c5 {[%clk 0:02:53]} 11. h4 {[%clk 0:02:58]}  Ba6 {[%clk 0:02:41]} 12. Qe2 {[%clk 0:02:56]}  Bxd3 {[%clk 0:02:40]} 13. Qxd3 {[%clk 0:02:57]}  c4 {[%clk 0:02:40]} 14. Qc2 {[%clk 0:02:52]}  h5 {[%clk 0:02:32]} 15. g4 {[%clk 0:02:49]}  hxg4 {[%clk 0:02:31]} 16. Ng5 {[%clk 0:02:49]}  g6 {[%clk 0:02:24]} 17. e4 {[%clk 0:02:38]}  Nc6 {[%clk 0:01:53]} 18. O-O-O {[%clk 0:02:02]}  Bxd4 {[%clk 0:00:48]} 19. e5 {[%clk 0:01:50]}  Be3 {[%clk 0:00:36]} 20. h5 {[%clk 0:01:46]}  Bxf4 {[%clk 0:00:31]} 21. hxg6 {[%clk 0:01:32]}  Qxg5 {[%clk 0:00:31]} 22. g7 {[%clk 0:01:31]}  Qxg7 {[%clk 0:00:29]} 23. Rdg1 {[%clk 0:01:31]}  Nxe5 {[%clk 0:00:27]} 24. Kb1 {[%clk 0:01:32]}  f5 {[%clk 0:00:25]} 25. Nf1 {[%clk 0:01:29]}  Kf7 {[%clk 0:00:23]} 26. Ng3 {[%clk 0:01:23]}  Bxg3 {[%clk 0:00:21]} 27. Rxg3 {[%clk 0:01:23]}  Rh8 {[%clk 0:00:22]} 28. Re1 {[%clk 0:01:24]}  Nd3 {[%clk 0:00:20]} 29. Rf1 {[%clk 0:01:20]}  Qe5 {[%clk 0:00:20]} 30. Rxg4 {[%clk 0:01:20]}  Rag8 {[%clk 0:00:19]} 31. Rd4 {[%clk 0:01:18]}  Rh2 {[%clk 0:00:15]} 32. Qa4 {[%clk 0:01:19]}  Rxb2+ {[%clk 0:00:15]} 33. Ka1 {[%clk 0:01:20]}  Rgg2 {[%clk 0:00:14]} 34. Qd7+ {[%clk 0:01:20]}  Kg6 {[%clk 0:00:13]} 35. Qe8+ {[%clk 0:01:19]}  Kg7 {[%clk 0:00:12]} 36. Qe7+ {[%clk 0:01:19]}  Kg6 {[%clk 0:00:10]} 37. Qe8+ {[%clk 0:01:19]}  Kg5 {[%clk 0:00:10]} 38. Qg8+ {[%clk 0:01:17]}  Kf6 {[%clk 0:00:09]} 39. Qf8+ {[%clk 0:01:15]}  Kg6 {[%clk 0:00:09]} 40. Qg8+ {[%clk 0:01:13]}  Kf6 {[%clk 0:00:08]} 41. Qf8+ {[%clk 0:01:11]}  Kg6 {[%clk 0:00:08]} 42. Qg8+ {[%clk 0:01:08]}  Qg7 {[%clk 0:00:08]} 43. Qxe6+ {[%clk 0:01:08]}  Qf6 {[%clk 0:00:09]} 44. Qg8+ {[%clk 0:01:07]}  Qg7 {[%clk 0:00:09]} 45. Qe6+ {[%clk 0:01:01]}  Qf6 {[%clk 0:00:05]} 46. Qg8+ {[%clk 0:00:41]}  Qg7 {[%clk 0:00:06]} 47. Qe6+ {[%clk 0:00:21]} 1/2-1/2


[Site "https://www.chess.com"]

[Event "Titled Tuesday Blitz April 11 Late 2023"]
[White "Martin Barcelo, Carles"]
[Black "Iliaguev, Nisim"]
[WhiteFideId "24561444"]
[BlackFideId "2817276"]
[WhiteElo "2089"]
[BlackElo "2241"]
[Result "0-1"]
[Round "04"]
[TimeControl "180+2"]
[Date "2023.04.11"]
[WhiteClock "0:00:09"]
[BlackClock "0:00:56"]

1. e4 {[%clk 0:02:58]}  c6 {[%clk 0:03:00]} 2. Nf3 {[%clk 0:02:50]}  d5 {[%clk 0:03:01]} 3. d3 {[%clk 0:02:50]}  Bg4 {[%clk 0:03:00]} 4. h3 {[%clk 0:02:49]}  Bxf3 {[%clk 0:03:01]} 5. Qxf3 {[%clk 0:02:49]}  e6 {[%clk 0:03:02]} 6. Nc3 {[%clk 0:02:46]}  Nf6 {[%clk 0:03:02]} 7. Bd2 {[%clk 0:02:45]}  Nbd7 {[%clk 0:03:02]} 8. g4 {[%clk 0:02:40]}  h6 {[%clk 0:03:01]} 9. Bg2 {[%clk 0:02:40]}  Bc5 {[%clk 0:03:01]} 10. O-O {[%clk 0:02:36]}  Ne5 {[%clk 0:02:52]} 11. Qe2 {[%clk 0:02:37]}  Ng6 {[%clk 0:02:52]} 12. Na4 {[%clk 0:01:37]}  Bd6 {[%clk 0:02:45]} 13. f4 {[%clk 0:01:36]}  dxe4 {[%clk 0:02:38]} 14. dxe4 {[%clk 0:01:34]}  e5 {[%clk 0:02:26]} 15. f5 {[%clk 0:01:25]}  Nh4 {[%clk 0:02:11]} 16. Be3 {[%clk 0:01:25]}  Nxg2 {[%clk 0:02:06]} 17. Qxg2 {[%clk 0:01:26]}  Qa5 {[%clk 0:02:03]} 18. b3 {[%clk 0:01:26]}  O-O-O {[%clk 0:01:58]} 19. Rfd1 {[%clk 0:01:20]}  Kb8 {[%clk 0:01:57]} 20. c4 {[%clk 0:01:18]}  Be7 {[%clk 0:01:42]} 21. Qf3 {[%clk 0:01:01]}  Qc7 {[%clk 0:01:41]} 22. Nc5 {[%clk 0:00:50]}  Rxd1+ {[%clk 0:01:29]} 23. Rxd1 {[%clk 0:00:50]}  Rd8 {[%clk 0:01:27]} 24. Rxd8+ {[%clk 0:00:33]}  Qxd8 {[%clk 0:01:28]} 25. Qe2 {[%clk 0:00:16]}  Bxc5 {[%clk 0:01:22]} 26. Bxc5 {[%clk 0:00:17]}  b6 {[%clk 0:01:19]} 27. Bb4 {[%clk 0:00:14]}  Qd4+ {[%clk 0:01:18]} 28. Kg2 {[%clk 0:00:14]}  c5 {[%clk 0:01:12]} 29. Be1 {[%clk 0:00:14]}  Nxe4 {[%clk 0:01:11]} 30. Bh4 {[%clk 0:00:13]}  f6 {[%clk 0:01:11]} 31. Be1 {[%clk 0:00:12]}  Kc7 {[%clk 0:01:10]} 32. Qf3 {[%clk 0:00:12]}  Qb2+ {[%clk 0:01:05]} 33. Kg1 {[%clk 0:00:11]}  Qc2 {[%clk 0:01:04]} 34. Kf1 {[%clk 0:00:10]}  Qb1 {[%clk 0:01:00]} 35. Qe3 {[%clk 0:00:09]}  h5 {[%clk 0:00:56]} 36. Qf3 {[%clk 0:00:09]}  Nd2+ {[%clk 0:00:56]} 0-1


[Site "https://www.chess.com"]

[Event "Titled Tuesday Blitz April 11 Late 2023"]
[White "Federzoni, Enzo"]
[Black "Korchmar, Vasiliy"]
[WhiteFideId "2173301"]
[BlackFideId "24131750"]
[WhiteElo "2039"]
[BlackElo "2370"]
[Result "0-1"]
[Round "04"]
[TimeControl "180+2"]
[Date "2023.04.11"]
[WhiteClock "0:00:41"]
[BlackClock "0:01:36"]

1. e4 {[%clk 0:03:00]}  c5 {[%clk 0:02:59]} 2. Nf3 {[%clk 0:03:00]}  d6 {[%clk 0:02:59]} 3. d4 {[%clk 0:03:01]}  cxd4 {[%clk 0:03:00]} 4. Nxd4 {[%clk 0:03:01]}  Nf6 {[%clk 0:03:01]} 5. Nc3 {[%clk 0:03:02]}  Nc6 {[%clk 0:03:01]} 6. Bg5 {[%clk 0:03:00]}  Bd7 {[%clk 0:03:02]} 7. Qd2 {[%clk 0:03:00]}  a6 {[%clk 0:03:02]} 8. O-O-O {[%clk 0:02:59]}  e6 {[%clk 0:03:01]} 9. f4 {[%clk 0:02:58]}  Be7 {[%clk 0:03:01]} 10. Nf3 {[%clk 0:02:56]}  b5 {[%clk 0:03:00]} 11. Bxf6 {[%clk 0:02:55]}  gxf6 {[%clk 0:02:59]} 12. f5 {[%clk 0:02:48]}  Qb6 {[%clk 0:02:59]} 13. Kb1 {[%clk 0:02:46]}  O-O-O {[%clk 0:02:56]} 14. g3 {[%clk 0:02:45]}  Kb8 {[%clk 0:02:51]} 15. fxe6 {[%clk 0:02:43]}  fxe6 {[%clk 0:02:50]} 16. Bh3 {[%clk 0:02:43]}  Ne5 {[%clk 0:02:46]} 17. Nd4 {[%clk 0:02:39]}  Nc4 {[%clk 0:02:22]} 18. Qe2 {[%clk 0:02:38]}  Qc5 {[%clk 0:02:17]} 19. Nxe6 {[%clk 0:02:26]}  Qb4 {[%clk 0:02:15]} 20. b3 {[%clk 0:02:15]}  Na3+ {[%clk 0:02:13]} 21. Kb2 {[%clk 0:02:08]}  Nc4+ {[%clk 0:02:13]} 22. Kb1 {[%clk 0:02:09]}  Qxc3 {[%clk 0:02:08]} 23. bxc4 {[%clk 0:02:08]}  f5 {[%clk 0:01:50]} 24. Rd3 {[%clk 0:01:14]}  Qxc4 {[%clk 0:01:51]} 25. Nxd8 {[%clk 0:01:10]}  Rxd8 {[%clk 0:01:51]} 26. e5 {[%clk 0:00:55]}  Be6 {[%clk 0:01:46]} 27. exd6 {[%clk 0:00:41]}  Qxa2+ {[%clk 0:01:39]} 28. Kc1 {[%clk 0:00:42]}  Bg5+ {[%clk 0:01:37]} 29. Kd1 {[%clk 0:00:41]}  Qb1# {[%clk 0:01:36]} 0-1


[Site "https://www.chess.com"]